fUSD/lending_fUSD_20250514
["ID","MTS","AMOUNT","RATE_DAILY","PERIOD"]
[361069832,1747230652433,-441.74,0.00011522,2]
[361069833,1747230652443,-1002.22,0.00011522,2]
[361069834,1747230652452,-2276.64,0.00011522,2]
[361069835,1747230652462,-833.82,0.00011522,2]
[361069836,1747230652472,-404.0,0.00011522,2]
[361069837,1747230652481,-425.62,0.00011522,2]
[361069838,1747230652491,-767.41,0.00011522,2]
[361069839,1747230652500,-1420.24,0.00011522,2]
[361069840,1747230652509,-3460.84,0.00011522,2]
[361069841,1747230652519,-400.0,0.00011522,2]
[361069842,1747230652528,-1965.59564,0.00011522,2]
[361069843,1747230652537,-151.0,0.00011522,2]
[361069844,1747230652547,-1965.59564,0.00011522,2]
[361069845,1747230652556,-12523.18,0.00011522,2]
[361069846,1747230652565,-400.0,0.00011522,2]
[361069847,1747230652575,-557.06,0.00011522,2]
[361069848,1747230652584,-151.0,0.00011522,2]
[361069849,1747230652594,-684.7,0.00011522,2]
[361069850,1747230652603,-400.0,0.00011522,2]
[361069851,1747230652612,-713.77,0.00011522,2]
[361069852,1747230652621,-4409.42,0.00011522,2]
[361069853,1747230652630,-151.0,0.00011522,2]
[361069854,1747230652640,-400.0,0.00011522,2]
[361069855,1747230652650,-995.14,0.00011522,2]
[361069856,1747230652659,-6872.59,0.00011522,2]
[361069857,1747230652668,-2089.74,0.00011522,2]
[361069858,1747230652677,-400.0,0.00011522,2]
[361069859,1747230652687,-503.64,0.00011522,2]
[361069860,1747230652696,-400.0,0.00011522,2]
[361069861,1747230652705,-400.0,0.00011522,2]
[361069862,1747230652714,-613.54,0.00011522,2]
[361069863,1747230652723,-1000.0,0.00011522,2]
[361069864,1747230652733,-551.26,0.00011522,2]
[361069865,1747230652742,-180.989683,0.00011522,2]
[361069866,1747230652752,-180.989683,0.00011522,2]
[361069867,1747230652761,-300.0,0.00011522,2]
[361069868,1747230652770,-400.0,0.00011523,2]
[361069869,1747230652779,-400.0,0.00011523,2]
[361069870,1747230652788,-454.2874112,0.00011523,2]
[361069871,1747230652798,-400.0,0.00011523,2]
[361069872,1747230652807,-579.06,0.00011523,2]
[361069873,1747230652816,-400.0,0.00011523,2]
[361069874,1747230652825,-400.0,0.00011523,2]
[361069875,1747230652835,-593.05,0.00011523,2]
[361069876,1747230652844,-419.53,0.00011523,2]
[361069877,1747230652853,-400.0,0.00011523,2]
[361069878,1747230652863,-400.0,0.00011523,2]
[361069879,1747230652872,-684.73,0.00011523,2]
[361069880,1747230652883,-400.0,0.00011523,2]
[361069881,1747230652898,-400.0,0.00011523,2]
[361069882,1747230652908,-400.0,0.00011523,2]
[361069883,1747230652917,-400.0,0.00011523,2]
[361069884,1747230652927,-400.0,0.00011523,2]
[361069885,1747230652936,-478.40080254,0.00011523,2]
[361069886,1747230652946,-400.0,0.00011523,2]
[361069887,1747230652955,-400.0,0.00011523,2]
[361069888,1747230652965,-400.0,0.00011523,2]
[361069889,1747230652975,-400.0,0.00011523,2]
[361069890,1747230652984,-247.79245078,0.00011523,2]
[361069891,1747230652995,-400.0,0.00011523,2]
[361069892,1747230653005,-400.0,0.00011523,2]
[361069893,1747230653014,-400.0,0.00011523,2]
[361069894,1747230653024,-400.0,0.00011523,2]
[361069895,1747230653033,-400.0,0.00011523,2]
[361069896,1747230653043,-400.0,0.00011523,2]
[361069897,1747230653052,-400.0,0.00011523,2]
[361069898,1747230653062,-400.0,0.00011523,2]
[361069899,1747230653072,-400.0,0.00011523,2]
[361069900,1747230653082,-400.0,0.00011523,2]
[361069901,1747230653091,-151.0,0.00011523,2]
[361069902,1747230653101,-151.0,0.00011523,2]
[361069903,1747230653111,-400.0,0.00011523,2]
[361069904,1747230653120,-400.0,0.00011523,2]
[361069905,1747230653130,-400.0,0.00011523,2]
[361069906,1747230653142,-400.0,0.00011523,2]
[361069907,1747230653150,-459.96,0.00011523,2]
[361069908,1747230653159,-409.59,0.00011523,2]
[361069909,1747230653167,-151.0,0.00011523,2]
[361069910,1747230653176,-400.0,0.00011523,2]
[361069911,1747230653185,-400.0,0.00011523,2]
[361069912,1747230653193,-400.0,0.00011523,2]
[361069913,1747230653203,-972.08,0.00011523,2]
[361069914,1747230653213,-400.0,0.00011523,2]
[361069915,1747230653223,-400.0,0.00011523,2]
[361069916,1747230653233,-873.53,0.00011523,2]
[361069917,1747230653242,-509.3,0.00011523,2]
[361069918,1747230653252,-1663.05,0.00011523,2]
[361069919,1747230653262,-754.04,0.00011523,2]
[361069920,1747230653274,-540.43,0.00011523,2]
[361069921,1747230653283,-940.1,0.00011523,2]
[361069922,1747230653292,-400.0,0.00011523,2]
[361069923,1747230653302,-152.556364,0.00011523,2]
[361069924,1747230653311,-446.67304499,0.00011523,2]
[361069925,1747230653321,-400.0,0.00011523,2]
[361069926,1747230653331,-400.0,0.00011523,2]
[361069927,1747230653340,-151.0,0.00011523,2]
[361069928,1747230653349,-400.0,0.00011523,2]
[361069929,1747230653362,-151.0,0.00011523,2]
[361069930,1747230653371,-151.0,0.00011523,2]
[361069931,1747230653380,-400.0,0.00011523,2]
[361069932,1747230653392,-577.66,0.00011523,2]
[361069933,1747230653403,-400.0,0.00011523,2]
[361069934,1747230653412,-591.74,0.00011523,2]
[361069935,1747230653421,-400.0,0.00011523,2]
[361069936,1747230653431,-329.81701546,0.00011523,2]
[361069937,1747230653440,-400.0,0.00011523,2]
[361069938,1747230653450,-158.058379,0.00011523,2]
[361069939,1747230653459,-551.46,0.00011523,2]
[361069940,1747230653469,-400.0,0.00011523,2]
[361069941,1747230653478,-400.0,0.00011523,2]
[361069942,1747230653487,-400.0,0.00011523,2]
[361069943,1747230653496,-400.0,0.00011523,2]
[361069944,1747230653506,-400.0,0.00011523,2]
[361069945,1747230653515,-1664.97,0.00011523,2]
[361069946,1747230653526,-442.88,0.00011523,2]
[361069947,1747230653535,-400.0,0.00011523,2]
[361069948,1747230653544,-653.41,0.00011523,2]
[361069949,1747230653554,-400.0,0.00011523,2]
[361069950,1747230653563,-846.45,0.00011523,2]
[361069951,1747230653572,-400.0,0.00011523,2]
[361069952,1747230653581,-855.69,0.00011523,2]
[361069953,1747230653591,-400.0,0.00011523,2]
[361069954,1747230653600,-400.0,0.00011523,2]
[361069955,1747230653610,-400.0,0.00011523,2]
[361069956,1747230653619,-400.0,0.00011523,2]
[361069957,1747230653628,-400.0,0.00011523,2]
[361069958,1747230653640,-400.0,0.00011523,2]
[361069959,1747230653650,-400.0,0.00011523,2]
[361069960,1747230653659,-151.53045,0.00011523,2]
[361069961,1747230653668,-400.0,0.00011523,2]
[361069962,1747230653678,-400.0,0.00011523,2]
[361069963,1747230653687,-415.93,0.00011523,2]
[361069964,1747230653697,-400.0,0.00011523,2]
[361069965,1747230653706,-1573.57,0.00011523,2]
[361069966,1747230653715,-151.0,0.00011523,2]
[361069967,1747230653725,-400.0,0.00011523,2]
[361069968,1747230653734,-820.65,0.00011523,2]
[361069969,1747230653744,-400.0,0.00011523,2]
[361069970,1747230653753,-400.0,0.00011523,2]
[361069971,1747230653762,-400.0,0.00011523,2]
[361069972,1747230653772,-1888.75,0.00011523,2]
[361069973,1747230653781,-400.0,0.00011523,2]
[361069974,1747230653791,-400.0,0.00011523,2]
[361069975,1747230653800,-162.984459,0.00011523,2]
[361069976,1747230653810,-724.57,0.00011523,2]
[361069977,1747230653820,-151.0,0.00011523,2]
[361069978,1747230653830,-400.0,0.00011523,2]
[361069979,1747230653840,-1562.95,0.00011523,2]
[361069980,1747230653849,-922.84,0.00011523,2]
[361069981,1747230653859,-400.0,0.00011523,2]
[361069982,1747230653869,-364.68232102,0.00011523,2]
[361069983,1747230653879,-590.63,0.00011523,2]
[361069984,1747230653890,-415.66,0.00011523,2]
[361069985,1747230653900,-897.6,0.00011523,2]
[361069986,1747230653910,-472.64,0.00011523,2]
[361069987,1747230653919,-430.44,0.00011523,2]
[361069988,1747230653929,-1371.52,0.00011523,2]
[361069989,1747230653938,-3515.79,0.00011523,2]
[361069990,1747230653948,-544.43,0.00011523,2]
[361069991,1747230653958,-526.89272252,0.00011523,2]
[361069992,1747230653967,-1110.39,0.00011523,2]
[361069993,1747230653976,-1122.202734,0.00011523,2]
[361069994,1747230653986,-400.0,0.00011523,2]
[361069995,1747230653995,-400.0,0.00011523,2]
[361069996,1747230654005,-561.24,0.00011523,2]
[361069997,1747230654014,-1122.202734,0.00011523,2]
[361069998,1747230654024,-400.0,0.00011523,2]
[361069999,1747230654033,-780.16,0.00011523,2]
[361070000,1747230654042,-400.0,0.00011523,2]
[361070001,1747230654052,-455.12,0.00011523,2]
[361070002,1747230654062,-400.0,0.00011523,2]
[361070003,1747230654071,-151.0,0.00011523,2]
[361070004,1747230654081,-400.0,0.00011523,2]
[361070005,1747230654090,-400.0,0.00011523,2]
[361070006,1747230654099,-204.32547432,0.00011523,2]
[361070007,1747230654109,-422.02,0.00011523,2]
[361070008,1747230654118,-400.0,0.00011523,2]
[361070009,1747230654127,-400.0,0.00011523,2]
[361070010,1747230654137,-400.0,0.00011523,2]
[361070011,1747230654147,-490.18,0.00011523,2]
[361070012,1747230654156,-400.0,0.00011523,2]
[361070013,1747230654165,-196.778044,0.00011523,2]
[361070014,1747230654174,-400.0,0.00011523,2]
[361070015,1747230654185,-360.37767761,0.00011523,2]
[361070016,1747230654195,-400.0,0.00011523,2]
[361070017,1747230654204,-151.0,0.00011523,2]
[361070018,1747230654213,-196.778044,0.00011523,2]
[361070019,1747230654222,-1156.46,0.00011523,2]
[361070020,1747230654232,-831.71,0.00011523,2]
[361070021,1747230654242,-445.28,0.00011523,2]
[361070022,1747230654251,-400.0,0.00011523,2]
[361070023,1747230654260,-400.0,0.00011523,2]
[361070024,1747230654270,-400.0,0.00011523,2]
[361070025,1747230654279,-1161.11,0.00011523,2]
[361070026,1747230654289,-1135.486067,0.00011523,2]
[361070027,1747230654299,-400.0,0.00011523,2]
[361070028,1747230654310,-1135.486067,0.00011523,2]
[361070029,1747230654320,-400.0,0.00011523,2]
[361070030,1747230654330,-627.33,0.00011523,2]
[361070031,1747230654340,-400.0,0.00011523,2]
[361070032,1747230654350,-400.0,0.00011523,2]
[361070033,1747230654363,-400.0,0.00011523,2]
[361070034,1747230654372,-465.97,0.00011523,2]
[361070035,1747230654382,-400.0,0.00011523,2]
[361070036,1747230654392,-542.122738,0.00011523,2]
[361070037,1747230654402,-542.122738,0.00011523,2]
[361070038,1747230654411,-1082.11,0.00011523,2]
[361070039,1747230654421,-400.0,0.00011523,2]
[361070040,1747230654431,-969.12,0.00011523,2]
[361070041,1747230654441,-400.0,0.00011523,2]
[361070042,1747230654450,-400.0,0.00011523,2]
[361070043,1747230654459,-985.8,0.00011523,2]
[361070044,1747230654469,-639.52,0.00011523,2]
[361070045,1747230654479,-400.0,0.00011523,2]
[361070046,1747230654488,-400.0,0.00011523,2]
[361070047,1747230654497,-562.61,0.00011523,2]
[361070048,1747230654507,-400.0,0.00011523,2]
[361070049,1747230654516,-400.0,0.00011523,2]
[361070050,1747230654526,-400.0,0.00011523,2]
[361070051,1747230654535,-151.0,0.00011523,2]
[361070052,1747230654545,-400.0,0.00011523,2]
[361070053,1747230654554,-151.0,0.00011523,2]
[361070054,1747230654564,-151.0,0.00011523,2]
[361070055,1747230654574,-841.3,0.00011523,2]
[361070056,1747230654584,-151.0,0.00011523,2]
[361070057,1747230654593,-400.0,0.00011523,2]
[361070058,1747230654603,-927.79,0.00011523,2]
[361070059,1747230654614,-400.0,0.00011523,2]
[361070060,1747230654623,-1641.5,0.00011523,2]
[361070061,1747230654633,-400.0,0.00011523,2]
[361070062,1747230654643,-400.0,0.00011523,2]
[361070063,1747230654653,-811.67,0.00011523,2]
[361070064,1747230654663,-402.92,0.00011523,2]
[361070065,1747230654672,-855.08,0.00011523,2]
[361070066,1747230654890,-151.0,0.00011523,2]
[361070067,1747230654901,-151.0,0.00011523,2]
[361070068,1747230654911,-497.07,0.00011523,2]
[361070069,1747230654921,-400.0,0.00011523,2]
[361070070,1747230654931,-400.0,0.00011523,2]
[361070071,1747230654941,-400.0,0.00011523,2]
[361070072,1747230654951,-507.23,0.00011523,2]
[361070073,1747230654963,-400.0,0.00011523,2]
[361070074,1747230654973,-400.0,0.00011523,2]
[361070075,1747230654983,-216.83345,0.00011523,2]
[361070076,1747230654994,-400.0,0.00011523,2]
[361070077,1747230655004,-569.55,0.00011523,2]
[361070078,1747230655014,-216.83345,0.00011523,2]
[361070079,1747230655024,-428.27,0.00011523,2]
[361070080,1747230655034,-715.59,0.00011523,2]
[361070081,1747230655045,-1620.28,0.00011523,2]
[361070082,1747230655054,-505.1,0.00011523,2]
[361070083,1747230655065,-2351.68,0.00011523,2]
[361070084,1747230655075,-474.72,0.00011523,2]
[361070085,1747230655086,-400.0,0.00011523,2]
[361070086,1747230655096,-400.0,0.00011523,2]
[361070087,1747230655107,-1068.9,0.00011523,2]
[361070088,1747230655118,-619.36,0.00011523,2]
[361070089,1747230655129,-400.0,0.00011523,2]
[361070090,1747230655139,-400.0,0.00011523,2]
[361070091,1747230655149,-400.0,0.00011523,2]
[361070092,1747230655160,-151.0,0.00011523,2]
[361070093,1747230655170,-151.0,0.00011523,2]
[361070094,1747230655181,-151.0,0.00011524,2]
[361070095,1747230655190,-151.0,0.00011524,2]
[361070096,1747230655199,-151.0,0.00011524,2]
[361070097,1747230655209,-151.0,0.00011524,2]
[361070098,1747230655219,-151.0,0.00011524,2]
[361070099,1747230655229,-174.998011,0.00011524,2]
[361070100,1747230655239,-174.998011,0.00011524,2]
[361070101,1747230655249,-151.0,0.00011524,2]
[361070102,1747230655260,-151.0,0.00011524,2]
[361070103,1747230655270,-151.0,0.00011524,2]
[361070104,1747230655280,-2250.89,0.00011524,2]
[361070105,1747230655289,-151.0,0.00011525,2]
[361070106,1747230655299,-151.0,0.00011525,2]
[361070107,1747230655309,-151.0,0.00011525,2]
[361070108,1747230655319,-151.0,0.00011525,2]
[361070109,1747230655329,-198.695711,0.00011525,2]
[361070110,1747230655338,-198.695711,0.00011525,2]
[361070111,1747230655352,-151.0,0.00011525,2]
[361070112,1747230655361,-365.215082,0.00011525,2]
[361070113,1747230655370,-365.215082,0.00011525,2]
[361070114,1747230655380,-276.210792,0.00011525,2]
[361070115,1747230655389,-276.210792,0.00011525,2]
[361070116,1747230655400,-151.0,0.00011525,2]
[361070117,1747230655411,-151.0,0.00011525,2]
[361070118,1747230655421,-468.204198,0.00011525,2]
[361070119,1747230655432,-468.204198,0.00011525,2]
[361070120,1747230655442,-151.0,0.00011525,2]
[361070121,1747230655452,-151.0,0.00011525,2]
[361070122,1747230655462,-151.0,0.00011526,2]
[361070123,1747230655472,-151.0,0.00011526,2]
[361070124,1747230655481,-151.0,0.00011526,2]
[361070125,1747230655491,-151.0,0.00011526,2]
[361070126,1747230655500,-151.0,0.00011526,2]
[361070127,1747230655510,-151.0,0.00011526,2]
[361070128,1747230655520,-151.0,0.00011527,2]
[361070129,1747230655530,-151.0,0.00011527,2]
[361070130,1747230655540,-208.202388,0.00011527,2]
[361070131,1747230655549,-208.202388,0.00011527,2]
[361070132,1747230655559,-300.0,0.00011546,2]
[361070133,1747230655569,-151.0,0.00011547,2]
[361070134,1747230655578,-6082.86343281,0.00011558,2]
[361070135,1747230655588,-4815.84022241,0.00011558,2]
[361070136,1747230655597,-1965.59564,0.00011622,2]
[361070137,1747230655607,-1965.59564,0.00011622,2]
[361070138,1747230655617,-6082.86343281,0.00011672,2]
[361070139,1747230655626,-4815.84022241,0.00011672,2]
[361070140,1747230655636,-151.0,0.00011699,2]
[361070141,1747230655647,-167.339465,0.00011699,2]
[361070142,1747230655657,-167.339465,0.00011699,2]
[361070143,1747230655666,-164.555,0.0001175,2]
[361070144,1747230655676,-218.315,0.0001175,2]
[361070145,1747230655684,-150.268,0.0001175,2]
[361070146,1747230655694,-296.486,0.0001175,2]
[361070147,1747230655703,-150.0,0.0001175,2]
[361070148,1747230655712,-6082.86343281,0.00011786,2]
[361070149,1747230655722,-151.0,0.00011786,2]
[361070150,1747230655731,-400.0,0.00011794,2]
[361070151,1747230655741,-400.0,0.00011794,2]
[361070152,1747230655750,-706.13,0.00011794,2]
[361070153,1747230655760,-402.07,0.00011794,2]
[361070154,1747230655770,-415.6,0.00011794,2]
[361070155,1747230655779,-805.99,0.00011794,2]
[361070156,1747230655788,-733.78,0.00011794,2]
[361070157,1747230655798,-400.0,0.00011794,2]
[361070158,1747230655807,-1422.66,0.00011794,2]
[361070159,1747230655817,-400.0,0.00011794,2]
[361070160,1747230655827,-400.0,0.00011794,2]
[361070161,1747230655836,-2250.89,0.00011794,2]
[361070162,1747230655846,-3213.21,0.00011794,2]
[361070163,1747230655855,-400.0,0.00011794,2]
[361070164,1747230655865,-1070.61,0.00011794,2]
[361070165,1747230655875,-7960.6,0.00011794,2]
[361070166,1747230655885,-1119.93,0.00011794,2]
[361070167,1747230655898,-2922.67,0.00011794,2]
[361070168,1747230655908,-400.0,0.00011794,2]
[361070169,1747230655917,-568.59,0.00011794,2]
[361070170,1747230655927,-1233.02,0.00011794,2]
[361070171,1747230655936,-1084.49,0.00011794,2]
[361070172,1747230655946,-790.97,0.00011794,2]
[361070173,1747230655955,-414.07,0.00011794,2]
[361070174,1747230655965,-439.86,0.00011794,2]
[361070175,1747230655975,-400.0,0.00011794,2]
[361070176,1747230655985,-524.197361,0.00011794,2]
[361070177,1747230655994,-6995.4047108,0.00011795,2]
[361070178,1747230656004,-400.0,0.00011795,2]
[361070179,1747230656013,-501.51,0.00011795,2]
[361070180,1747230656023,-400.0,0.00011795,2]
[361070181,1747230656033,-400.0,0.00011795,2]
[361070182,1747230656042,-472.62,0.00011795,2]
[361070183,1747230656051,-400.0,0.00011795,2]
[361070184,1747230656061,-585.535374,0.00011795,2]
[361070185,1747230656071,-585.535374,0.00011795,2]
[361070186,1747230656080,-400.0,0.00011795,2]
[361070187,1747230656090,-400.0,0.00011795,2]
[361070188,1747230656099,-667.73,0.00011795,2]
[361070189,1747230656109,-400.0,0.00011795,2]
[361070190,1747230656118,-400.0,0.00011795,2]
[361070191,1747230656128,-400.0,0.00011795,2]
[361070192,1747230656140,-400.0,0.00011795,2]
[361070193,1747230656149,-672.37,0.00011795,2]
[361070194,1747230656158,-250.0,0.00011795,2]
[361070195,1747230656168,-6988.047965,0.00011795,2]
[361070196,1747230656177,-400.0,0.00011795,2]
[361070197,1747230656187,-202.647018,0.00011795,2]
[361070198,1747230656196,-151.0,0.00011795,2]
[361070199,1747230656205,-300.0,0.00011795,2]
[361070200,1747230656214,-400.0,0.00011795,2]
[361070201,1747230656224,-918.47,0.00011795,2]
[361070202,1747230656234,-400.0,0.00011795,2]
[361070203,1747230656243,-400.0,0.00011795,2]
[361070204,1747230656253,-400.0,0.00011795,2]
[361070205,1747230656263,-400.0,0.00011795,2]
[361070206,1747230656272,-3651.88,0.00011795,2]
[361070207,1747230656282,-400.0,0.00011795,2]
[361070208,1747230656292,-400.0,0.00011795,2]
[361070209,1747230656302,-3258.4,0.00011795,2]
[361070210,1747230656311,-400.0,0.00011795,2]
[361070211,1747230656321,-1314.22,0.00011795,2]
[361070212,1747230656331,-400.0,0.00011795,2]
[361070213,1747230656341,-400.0,0.00011795,2]
[361070214,1747230656352,-400.0,0.00011795,2]
[361070215,1747230656365,-1582.84,0.00011795,2]
[361070216,1747230656374,-1344.58,0.00011795,2]
[361070217,1747230656383,-548.40454382,0.00011795,2]
[361070218,1747230656395,-683.67,0.00011795,2]
[361070219,1747230656404,-400.0,0.00011795,2]
[361070220,1747230656414,-400.0,0.00011795,2]
[361070221,1747230656425,-502.92,0.00011795,2]
[361070222,1747230656434,-221.61342717,0.00011795,2]
[361070223,1747230656445,-400.0,0.00011795,2]
[361070224,1747230656454,-752.4,0.00011795,2]
[361070225,1747230656464,-657.28,0.00011795,2]
[361070226,1747230656473,-2281.65,0.00011795,2]
[361070227,1747230656483,-1230.55,0.00011795,2]
[361070228,1747230656492,-448.22,0.00011795,2]
[361070229,1747230656501,-553.94,0.00011795,2]
[361070230,1747230656511,-859.65,0.00011795,2]
[361070231,1747230656520,-400.0,0.00011795,2]
[361070232,1747230656530,-1041.51,0.00011795,2]
[361070233,1747230656539,-400.0,0.00011795,2]
[361070234,1747230656548,-400.0,0.00011795,2]
[361070235,1747230656558,-1395.7,0.00011795,2]
[361070236,1747230656567,-400.0,0.00011795,2]
[361070237,1747230656577,-400.0,0.00011795,2]
[361070238,1747230656589,-151.0,0.00011795,2]
[361070239,1747230656599,-2797.95,0.00011795,2]
[361070240,1747230656608,-400.0,0.00011795,2]
[361070241,1747230656617,-400.0,0.00011795,2]
[361070242,1747230656627,-400.0,0.00011795,2]
[361070243,1747230656637,-643.83,0.00011795,2]
[361070244,1747230656648,-550.5,0.00011795,2]
[361070245,1747230656657,-1563.15,0.00011795,2]
[361070246,1747230656667,-400.0,0.00011795,2]
[361070247,1747230656676,-687.8,0.00011795,2]
[361070248,1747230656685,-486.08,0.00011795,2]
[361070249,1747230656695,-400.0,0.00011795,2]
[361070250,1747230656704,-951.5,0.00011795,2]
[361070251,1747230656714,-452.19,0.00011795,2]
[361070252,1747230656723,-64453.83,0.00011795,2]
[361070253,1747230656734,-496.13,0.00011795,2]
[361070254,1747230656743,-419.73,0.00011795,2]
[361070255,1747230656753,-1780.79,0.00011795,2]
[361070256,1747230656762,-180.989683,0.00011795,2]
[361070257,1747230656771,-180.989683,0.00011795,2]
[361070258,1747230656781,-400.0,0.00011796,2]
[361070259,1747230656792,-400.0,0.00011796,2]
[361070260,1747230656802,-400.0,0.00011796,2]
[361070261,1747230656811,-400.0,0.00011796,2]
[361070262,1747230656821,-400.0,0.00011796,2]
[361070263,1747230656832,-654.6,0.00011796,2]
[361070264,1747230656841,-619.83,0.00011796,2]
[361070265,1747230656852,-400.0,0.00011796,2]
[361070266,1747230656862,-967.34,0.00011796,2]
[361070267,1747230656872,-400.0,0.00011796,2]
[361070268,1747230656881,-400.0,0.00011796,2]
[361070269,1747230656893,-400.0,0.00011796,2]
[361070270,1747230656903,-400.0,0.00011796,2]
[361070271,1747230656913,-595.99,0.00011796,2]
[361070272,1747230656923,-1239.7,0.00011796,2]
[361070273,1747230656932,-526.71,0.00011796,2]
[361070274,1747230656942,-506.37,0.00011796,2]
[361070275,1747230656951,-703.06,0.00011796,2]
[361070276,1747230656961,-400.0,0.00011796,2]
[361070277,1747230656971,-400.0,0.00011796,2]
[361070278,1747230656981,-400.0,0.00011796,2]
[361070279,1747230656991,-874.27,0.00011796,2]
[361070280,1747230657001,-400.0,0.00011796,2]
[361070281,1747230657011,-473.91,0.00011796,2]
[361070282,1747230657021,-400.0,0.00011796,2]
[361070283,1747230657030,-562.99,0.00011796,2]
[361070284,1747230657040,-400.0,0.00011796,2]
[361070285,1747230657050,-400.0,0.00011796,2]
[361070286,1747230657059,-213.44538836,0.00011796,2]
[361070287,1747230657070,-891.28,0.00011796,2]
[361070288,1747230657080,-531.88,0.00011796,2]
[361070289,1747230657090,-400.0,0.00011796,2]
[361070290,1747230657099,-1391.15,0.00011796,2]
[361070291,1747230657109,-151.0,0.00011796,2]
[361070292,1747230657119,-400.0,0.00011796,2]
[361070293,1747230657128,-658.65,0.00011796,2]
[361070294,1747230657139,-400.0,0.00011796,2]
[361070295,1747230657149,-528.44,0.00011796,2]
[361070296,1747230657160,-400.0,0.00011796,2]
[361070297,1747230657169,-1122.202734,0.00011796,2]
[361070298,1747230657179,-1122.202734,0.00011796,2]
[361070299,1747230657188,-505.24,0.00011796,2]
[361070300,1747230657197,-424.95161391,0.00011796,2]
[361070301,1747230657207,-151.0,0.00011796,2]
[361070302,1747230657216,-400.0,0.00011796,2]
[361070303,1747230657226,-564.14,0.00011796,2]
[361070304,1747230657235,-614.27,0.00011796,2]
[361070305,1747230657245,-400.0,0.00011796,2]
[361070306,1747230657254,-400.0,0.00011796,2]
[361070307,1747230657264,-151.0,0.00011796,2]
[361070308,1747230657273,-866.0,0.00011796,2]
[361070309,1747230657283,-400.0,0.00011796,2]
[361070310,1747230657293,-410.55,0.00011796,2]
[361070311,1747230657302,-400.0,0.00011796,2]
[361070312,1747230657312,-400.0,0.00011796,2]
[361070313,1747230657322,-782.47,0.00011796,2]
[361070314,1747230657331,-729.84,0.00011796,2]
[361070315,1747230657341,-686.64,0.00011796,2]
[361070316,1747230657352,-525.57,0.00011796,2]
[361070317,1747230657365,-458.36,0.00011796,2]
[361070318,1747230657375,-644.76,0.00011796,2]
[361070319,1747230657385,-151.0,0.00011796,2]
[361070320,1747230657400,-585.64,0.00011796,2]
[361070321,1747230657409,-151.0,0.00011796,2]
[361070322,1747230657418,-151.0,0.00011796,2]
[361070323,1747230657427,-151.0,0.00011796,2]
[361070324,1747230657437,-400.0,0.00011796,2]
[361070325,1747230657447,-400.0,0.00011796,2]
[361070326,1747230657457,-400.0,0.00011796,2]
[361070327,1747230657468,-1223.56,0.00011796,2]
[361070328,1747230657477,-400.0,0.00011796,2]
[361070329,1747230657486,-6999.97,0.00011796,2]
[361070330,1747230657496,-1193.81,0.00011796,2]
[361070331,1747230657507,-151.0,0.00011796,2]